fUSD/lending_fUSD_20250826
["ID","MTS","AMOUNT","RATE_DAILY","PERIOD"]
[381522027,1756247471970,-1100.83,0.00027671,5]
[381522028,1756247471980,-400.0,0.00027671,5]
[381522029,1756247471990,-400.0,0.00027671,5]
[381522030,1756247471999,-400.0,0.00027671,5]
[381522031,1756247472009,-1244.25,0.00027671,5]
[381522032,1756247472019,-758.03,0.00027671,5]
[381522033,1756247472030,-927.96,0.00027671,5]
[381522034,1756247472039,-887.09,0.00027671,5]
[381522035,1756247472049,-1049.87,0.00027671,5]
[381522036,1756247472058,-400.0,0.00027671,5]
[381522037,1756247472067,-400.0,0.00027671,5]
[381522038,1756247472076,-495.42251076,0.00027671,5]
[381522039,1756247472085,-563.34,0.00027671,5]
[381522040,1756247472095,-669.63,0.00027671,5]
[381522041,1756247472104,-553.42,0.00027671,5]
[381522042,1756247472114,-400.0,0.00027671,5]
[381522043,1756247472123,-598.18,0.00027671,5]
[381522044,1756247472133,-913.43,0.00027671,5]
[381522045,1756247472143,-474.63,0.00027671,5]
[381522046,1756247472152,-400.0,0.00027671,5]
[381522047,1756247472161,-1236.0,0.00027671,5]
[381522048,1756247472170,-900.49,0.00027671,5]
[381522049,1756247472179,-483.99,0.00027671,5]
[381522050,1756247472189,-684.09,0.00027671,5]
[381522051,1756247472198,-477.1,0.00027671,5]
[381522052,1756247472207,-1229.03,0.00027671,5]
[381522053,1756247472217,-400.0,0.00027671,5]
[381522054,1756247472226,-400.0,0.00027671,5]
[381522055,1756247472235,-397.07192451,0.00027671,5]
[381522056,1756247472244,-531.6,0.00027671,5]
[381522057,1756247472254,-515.84,0.00027671,5]
[381522058,1756247472263,-515.19,0.00027671,5]
[381522059,1756247472272,-400.0,0.00027671,5]
[381522060,1756247472282,-905.12,0.00027671,5]
[381522061,1756247472291,-577.27,0.00027671,5]
[381522062,1756247472300,-677.29,0.00027671,5]
[381522063,1756247472310,-1188.39,0.00027671,5]
[381522064,1756247472319,-539.76,0.00027671,5]
[381522065,1756247472328,-1343.31,0.00027671,5]
[381522066,1756247472346,-619.85,0.00027671,5]
[381522067,1756247472366,-830.13,0.00027671,5]
[381522068,1756247472375,-588.19,0.00027671,5]
[381522069,1756247472384,-919.06,0.00027671,5]
[381522070,1756247472394,-400.0,0.00027671,5]
[381522071,1756247472404,-472.78,0.00027671,5]
[381522072,1756247472414,-1359.18,0.00027671,5]
[381522073,1756247472424,-516.08,0.00027671,5]
[381522074,1756247472434,-1049.17,0.00027671,5]
[381522075,1756247472444,-400.0,0.00027671,5]
[381522076,1756247472454,-400.0,0.00027671,5]
[381522077,1756247472463,-400.0,0.00027671,5]
[381522078,1756247472472,-400.0,0.00027671,5]
[381522079,1756247472482,-586.16,0.00027671,5]
[381522080,1756247472491,-872.73,0.00027671,5]
[381522081,1756247472501,-473.22,0.00027671,5]
[381522082,1756247472511,-1021.0,0.00027671,5]
[381522083,1756247472520,-524.45,0.00027671,5]
[381522084,1756247472530,-400.0,0.00027671,5]
[381522085,1756247472539,-400.0,0.00027671,5]
[381522086,1756247472549,-1672.66,0.00027671,5]
[381522087,1756247472559,-941.91,0.00027671,5]
[381522088,1756247472570,-1140.4,0.00027671,5]
[381522089,1756247472580,-855.84,0.00027671,5]
[381522090,1756247472589,-481.78,0.00027671,5]
[381522091,1756247472599,-537.1,0.00027671,5]
[381522092,1756247472608,-528.21,0.00027671,5]
[381522093,1756247472619,-460.25,0.00027671,5]
[381522094,1756247472633,-400.0,0.00027671,5]
[381522095,1756247472652,-740.43,0.00027671,5]
[381522096,1756247472674,-400.0,0.00027671,5]
[381522097,1756247472685,-400.0,0.00027671,5]
[381522098,1756247472696,-884.98,0.00027671,5]
[381522099,1756247472706,-490.0,0.00027671,5]
[381522100,1756247472717,-886.86,0.00027671,5]
[381522101,1756247472728,-427.69,0.00027671,5]
[381522102,1756247472739,-862.22,0.00027671,5]
[381522103,1756247472748,-400.0,0.00027671,5]
[381522104,1756247472758,-521.35,0.00027671,5]
[381522105,1756247472768,-1226.83,0.00027671,5]
[381522106,1756247472778,-738.68,0.00027671,5]
[381522107,1756247472787,-967.33,0.00027671,5]
[381522108,1756247472797,-400.0,0.00027671,5]
[381522109,1756247472807,-591.03,0.00027671,5]
[381522110,1756247472817,-400.0,0.00027671,5]
[381522111,1756247472826,-633.41,0.00027671,5]
[381522112,1756247472835,-400.0,0.00027671,5]
[381522113,1756247472845,-400.0,0.00027671,5]
[381522114,1756247472855,-400.0,0.00027671,5]
[381522115,1756247472863,-400.0,0.00027671,5]
[381522116,1756247472872,-721.77,0.00027671,5]
[381522117,1756247472882,-400.0,0.00027671,5]
[381522118,1756247472891,-925.92,0.00027671,5]
[381522119,1756247472900,-494.86745891,0.00027671,5]
[381522120,1756247472909,-830.19,0.00027671,5]
[381522121,1756247472919,-400.0,0.00027671,5]
[381522122,1756247472928,-444.0,0.00027671,5]
[381522123,1756247472937,-547.29,0.00027671,5]
[381522124,1756247472946,-400.0,0.00027671,5]
[381522125,1756247472955,-400.0,0.00027671,5]
[381522126,1756247472965,-1194.32,0.00027671,5]
[381522127,1756247472974,-400.0,0.00027671,5]
[381522128,1756247472983,-877.71,0.00027671,5]
[381522129,1756247472992,-850.14,0.00027671,5]
[381522130,1756247473001,-863.59,0.00027671,5]
[381522131,1756247473012,-400.04,0.00027671,5]
[381522132,1756247473021,-627.72,0.00027671,5]
[381522133,1756247473030,-1040.0,0.00027671,5]
[381522134,1756247473041,-400.0,0.00027671,5]
[381522135,1756247473050,-608.42,0.00027671,5]
[381522136,1756247473060,-1107.0,0.00027671,5]
[381522137,1756247473069,-1968.72,0.00027671,5]
[381522138,1756247473078,-717.14,0.00027671,5]
[381522139,1756247473087,-294.36998174,0.00027671,5]
[381522140,1756247473096,-1053.02,0.00027671,5]
[381522141,1756247473106,-1461.8,0.00027671,5]
[381522142,1756247473115,-400.0,0.00027671,5]
[381522143,1756247473125,-401.36,0.00027671,5]
[381522144,1756247473135,-751.58,0.00027671,5]
[381522145,1756247473145,-400.0,0.00027671,5]
[381522146,1756247473154,-400.0,0.00027671,5]
[381522147,1756247473164,-400.0,0.00027671,5]
[381522148,1756247473173,-400.0,0.00027671,5]
[381522149,1756247473183,-400.0,0.00027671,5]
[381522150,1756247473192,-569.4,0.00027671,5]
[381522151,1756247473202,-818.15,0.00027671,5]
[381522152,1756247473211,-237.48815958,0.00027671,5]
[381522153,1756247473220,-400.0,0.00027671,5]
[381522154,1756247473229,-433.95,0.00027671,5]
[381522155,1756247473238,-1084.12,0.00027671,5]
[381522156,1756247473248,-458.86,0.00027671,5]
[381522157,1756247473257,-400.0,0.00027671,5]
[381522158,1756247473266,-400.0,0.00027671,5]
[381522159,1756247473275,-754.99,0.00027671,5]
[381522160,1756247473284,-1378.44,0.00027671,5]
[381522161,1756247473294,-400.0,0.00027671,5]
[381522162,1756247473303,-1198.47,0.00027671,5]
[381522163,1756247473312,-422.07,0.00027671,5]
[381522164,1756247473321,-591.12,0.00027671,5]
[381522165,1756247473330,-400.0,0.00027671,5]
[381522166,1756247473344,-919.31,0.00027671,5]
[381522167,1756247473353,-625.11,0.00027671,5]
[381522168,1756247473365,-400.0,0.00027671,5]
[381522169,1756247473376,-317.29,0.00027671,5]
[381522170,1756247473386,-400.0,0.00027671,5]
[381522171,1756247473396,-735.52,0.00027671,5]
[381522172,1756247473405,-400.0,0.00027671,5]
[381522173,1756247473416,-1230.61,0.00027671,5]
[381522174,1756247473426,-400.0,0.00027671,5]
[381522175,1756247473436,-679.76,0.00027671,5]
[381522176,1756247473446,-423.8,0.00027671,5]
[381522177,1756247473456,-400.0,0.00027671,5]
[381522178,1756247473465,-668.66,0.00027671,5]
[381522179,1756247473475,-839.37,0.00027671,5]
[381522180,1756247473484,-1179.14,0.00027671,5]
[381522181,1756247473493,-400.0,0.00027671,5]
[381522182,1756247473502,-550.03,0.00027671,5]
[381522183,1756247473512,-606.15,0.00027671,5]
[381522184,1756247473521,-980.27,0.00027671,5]
[381522185,1756247473531,-400.0,0.00027671,5]
[381522186,1756247473540,-1052.9,0.00027671,5]
[381522187,1756247473550,-400.0,0.00027671,5]
[381522188,1756247473561,-541.64,0.00027671,5]
[381522189,1756247473571,-571.34,0.00027671,5]
[381522190,1756247473580,-400.0,0.00027671,5]
[381522191,1756247473589,-939.46,0.00027671,5]
[381522192,1756247473598,-719.22,0.00027671,5]
[381522193,1756247473607,-865.4,0.00027671,5]
[381522194,1756247473617,-400.0,0.00027671,5]
[381522195,1756247473630,-400.0,0.00027671,5]
[381522196,1756247473640,-400.0,0.00027671,5]
[381522197,1756247473649,-818.0,0.00027671,5]
[381522198,1756247473659,-656.76,0.00027671,5]
[381522199,1756247473668,-400.0,0.00027671,5]
[381522200,1756247473678,-400.0,0.00027671,5]
[381522201,1756247473688,-400.0,0.00027671,5]
[381522202,1756247473697,-591.37,0.00027671,5]
[381522203,1756247473707,-840.0,0.00027671,5]
[381522204,1756247473718,-400.0,0.00027671,5]
[381522205,1756247473728,-400.0,0.00027671,5]
[381522206,1756247473738,-400.0,0.00027671,5]
[381522207,1756247473748,-400.0,0.00027671,5]
[381522208,1756247473757,-400.0,0.00027671,5]
[381522209,1756247473767,-790.3,0.00027671,5]
[381522210,1756247473776,-1150.83,0.00027671,5]
[381522211,1756247473786,-888.08,0.00027671,5]
[381522212,1756247473795,-400.0,0.00027671,5]
[381522213,1756247473805,-1000.0,0.00027671,5]
[381522214,1756247473815,-400.0,0.00027671,5]
[381522215,1756247473824,-400.0,0.00027671,5]
[381522216,1756247473833,-469.3,0.00027671,5]
[381522217,1756247473843,-400.0,0.00027671,5]
[381522218,1756247473852,-847.08,0.00027671,5]
[381522219,1756247473862,-492.78,0.00027671,5]
[381522220,1756247473872,-537.4,0.00027671,5]
[381522221,1756247473881,-975.87,0.00027671,5]
[381522222,1756247473890,-400.0,0.00027671,5]
[381522223,1756247473899,-1218.12,0.00027671,5]
[381522224,1756247473910,-419.92,0.00027671,5]
[381522225,1756247473920,-526.34,0.00027671,5]
[381522226,1756247473930,-672.13,0.00027671,5]
[381522227,1756247473939,-1372.18,0.00027671,5]
[381522228,1756247473949,-1017.86,0.00027671,5]
[381522229,1756247473959,-716.98,0.00027671,5]
[381522230,1756247473968,-400.0,0.00027671,5]
[381522231,1756247473977,-400.0,0.00027671,5]
[381522232,1756247474123,-400.0,0.00027671,5]
[381522233,1756247474132,-1024.72,0.00027671,5]
[381522234,1756247474141,-497.56,0.00027671,5]
[381522235,1756247474151,-543.39,0.00027671,5]
[381522236,1756247474160,-578.62,0.00027671,5]
[381522237,1756247474169,-400.0,0.00027671,5]
[381522238,1756247474178,-907.27,0.00027671,5]
[381522239,1756247474187,-514.74,0.00027671,5]
[381522240,1756247474196,-1054.76,0.00027671,5]
[381522241,1756247474205,-1176.11,0.00027671,5]
[381522242,1756247474215,-821.69,0.00027671,5]
[381522243,1756247474223,-400.0,0.00027671,5]
[381522244,1756247474233,-400.0,0.00027671,5]
[381522245,1756247474242,-483.43,0.00027671,5]
[381522246,1756247474252,-994.3,0.00027671,5]
[381522247,1756247474261,-1279.85,0.00027671,5]
[381522248,1756247474270,-907.1,0.00027671,5]
[381522249,1756247474279,-493.1,0.00027671,5]
[381522250,1756247474288,-842.09,0.00027671,5]
[381522251,1756247474297,-495.63,0.00027671,5]
[381522252,1756247474306,-562.03,0.00027671,5]
[381522253,1756247474315,-245.03922363,0.00027671,5]
[381522254,1756247474324,-400.0,0.00027671,5]
[381522255,1756247474334,-547.13,0.00027671,5]
[381522256,1756247474347,-648.7,0.00027671,5]
[381522257,1756247474356,-400.0,0.00027671,5]
[381522258,1756247474365,-400.0,0.00027671,5]
[381522259,1756247474374,-711.41,0.00027671,5]
[381522260,1756247474384,-503.59,0.00027671,5]
[381522261,1756247474393,-1012.41,0.00027671,5]
[381522262,1756247474402,-400.0,0.00027671,5]
[381522263,1756247474413,-743.91,0.00027671,5]
[381522264,1756247474423,-400.0,0.00027671,5]
[381522265,1756247474432,-400.0,0.00027671,5]
[381522266,1756247474441,-400.0,0.00027671,5]
[381522267,1756247474450,-1063.15,0.00027671,5]
[381522268,1756247474459,-400.0,0.00027671,5]
[381522269,1756247474468,-400.0,0.00027671,5]
[381522270,1756247474477,-843.41,0.00027671,5]
[381522271,1756247474487,-492.69904873,0.00027671,5]
[381522272,1756247474495,-1067.87,0.00027671,5]
[381522273,1756247474505,-400.0,0.00027671,5]
[381522274,1756247474514,-533.69,0.00027671,5]
[381522275,1756247474524,-950.08,0.00027671,5]
[381522276,1756247474532,-400.0,0.00027671,5]
[381522277,1756247474542,-400.0,0.00027671,5]
[381522278,1756247474551,-983.86,0.00027671,5]
[381522279,1756247474562,-404.95,0.00027671,5]
[381522280,1756247474573,-400.0,0.00027671,5]
[381522281,1756247474583,-526.76,0.00027671,5]
[381522282,1756247474591,-400.0,0.00027671,5]
[381522283,1756247474601,-186.90798925,0.00027671,5]
[381522284,1756247474610,-791.8,0.00027671,5]
[381522285,1756247474619,-400.0,0.00027671,5]
[381522286,1756247474629,-400.0,0.00027671,5]
[381522287,1756247474638,-718.05,0.00027671,5]
[381522288,1756247474649,-644.45,0.00027671,5]
[381522289,1756247474659,-673.06,0.00027671,5]
[381522290,1756247474668,-810.36,0.00027671,5]
[381522291,1756247474677,-400.0,0.00027671,5]
[381522292,1756247474686,-571.52,0.00027671,5]
[381522293,1756247474696,-400.0,0.00027671,5]
[381522294,1756247474707,-400.0,0.00027671,5]
[381522295,1756247474717,-546.42,0.00027671,5]
[381522296,1756247474727,-1094.58,0.00027671,5]
[381522297,1756247474737,-400.0,0.00027671,5]
[381522298,1756247474748,-881.38,0.00027671,5]
[381522299,1756247474757,-546.22,0.00027671,5]
[381522300,1756247474767,-370.89182889,0.00027671,5]
[381522301,1756247474776,-400.0,0.00027671,5]
[381522302,1756247474785,-559.21,0.00027671,5]
[381522303,1756247474794,-400.0,0.00027671,5]
[381522304,1756247474803,-898.14,0.00027671,5]
[381522305,1756247474813,-737.5,0.00027671,5]
[381522306,1756247474822,-1892.48,0.00027671,5]
[381522307,1756247474831,-1492.28,0.00027671,5]
[381522308,1756247474840,-1159.34,0.00027671,5]
[381522309,1756247474850,-503.90084574,0.00027671,5]
[381522310,1756247474859,-509.03,0.00027671,5]
[381522311,1756247474869,-967.5,0.00027671,5]
[381522312,1756247474878,-476.0,0.00027671,5]
[381522313,1756247474888,-937.14,0.00027671,5]
[381522314,1756247474899,-400.0,0.00027671,5]
[381522315,1756247474908,-1299.22,0.00027671,5]
[381522316,1756247474920,-1095.83,0.00027671,5]
[381522317,1756247474932,-1180.68,0.00027671,5]
[381522318,1756247474941,-3372.03,0.00027671,5]
[381522319,1756247474950,-400.0,0.00027671,5]
[381522320,1756247474960,-400.0,0.00027671,5]
[381522321,1756247474970,-521.78,0.00027671,5]
[381522322,1756247474979,-814.87,0.00027671,5]
[381522323,1756247474988,-510.48,0.00027671,5]
[381522324,1756247474998,-674.43,0.00027671,5]
[381522325,1756247475008,-517.35,0.00027671,5]
[381522326,1756247475017,-619.31,0.00027671,5]
[381522327,1756247475027,-400.0,0.00027671,5]
[381522328,1756247475037,-490.0,0.00027671,5]
[381522329,1756247475047,-864.41,0.00027671,5]
[381522330,1756247475056,-1156.15,0.00027671,5]
[381522331,1756247475066,-614.55,0.00027671,5]
[381522332,1756247475075,-766.76,0.00027671,5]
[381522333,1756247475084,-774.57,0.00027671,5]
[381522334,1756247475093,-963.17,0.00027671,5]
[381522335,1756247475102,-474.02,0.00027671,5]
[381522336,1756247475111,-400.0,0.00027671,5]
[381522337,1756247475120,-522.27,0.00027671,5]
[381522338,1756247475129,-400.0,0.00027671,5]
[381522339,1756247475138,-542.92,0.00027671,5]
[381522340,1756247475148,-527.27,0.00027671,5]
[381522341,1756247475157,-739.7,0.00027671,5]
[381522342,1756247475167,-292.00086399,0.00027671,5]
[381522343,1756247475176,-400.0,0.00027671,5]
[381522344,1756247475185,-490.0,0.00027671,5]
[381522345,1756247475194,-400.0,0.00027671,5]
[381522346,1756247475203,-752.88,0.00027671,5]
[381522347,1756247475213,-526.06,0.00027671,5]
[381522348,1756247475222,-374.06088885,0.00027671,5]
[381522349,1756247475231,-400.0,0.00027671,5]
[381522350,1756247475240,-929.38,0.00027671,5]
[381522351,1756247475249,-479.27,0.00027671,5]
[381522352,1756247475259,-400.0,0.00027671,5]
[381522353,1756247475267,-400.0,0.00027671,5]
[381522354,1756247475276,-400.0,0.00027671,5]
[381522355,1756247475286,-400.0,0.00027671,5]
[381522356,1756247475295,-400.0,0.00027671,5]
[381522357,1756247475305,-1111.58,0.00027671,5]
[381522358,1756247475315,-471.5,0.00027671,5]
[381522359,1756247475323,-400.0,0.00027671,5]
[381522360,1756247475333,-698.27,0.00027671,5]
[381522361,1756247475345,-1226.36,0.00027671,5]
[381522362,1756247475354,-400.0,0.00027671,5]
[381522363,1756247475363,-400.0,0.00027671,5]
[381522364,1756247475371,-821.23,0.00027671,5]
[381522365,1756247475381,-979.87,0.00027671,5]
[381522366,1756247475391,-400.0,0.00027671,5]
[381522367,1756247475402,-675.68,0.00027671,5]
[381522368,1756247475412,-438.41,0.00027671,5]
[381522369,1756247475424,-793.81,0.00027671,5]
[381522370,1756247475434,-400.0,0.00027671,5]
[381522371,1756247475443,-476.81,0.00027671,5]
[381522372,1756247475452,-435.15,0.00027671,5]
[381522373,1756247475462,-400.0,0.00027671,5]
[381522374,1756247475471,-400.0,0.00027671,5]
[381522375,1756247475480,-400.0,0.00027671,5]
[381522376,1756247475491,-1000.0,0.00027671,5]
[381522377,1756247475501,-543.35,0.00027671,5]
[381522378,1756247475512,-689.43,0.00027671,5]
[381522379,1756247475522,-1676.47,0.00027671,5]
[381522380,1756247475531,-1430.93,0.00027671,5]
[381522381,1756247475544,-474.34,0.00027671,5]
[381522382,1756247475554,-400.0,0.00027671,5]
[381522383,1756247475565,-1081.21,0.00027671,5]
[381522384,1756247475574,-650.96,0.00027671,5]
[381522385,1756247475583,-728.38,0.00027671,5]
[381522386,1756247475592,-400.0,0.00027671,5]
[381522387,1756247475602,-421.92,0.00027671,5]
[381522388,1756247475613,-490.74487584,0.00027671,5]
[381522389,1756247475623,-475.17,0.00027671,5]
[381522390,1756247475635,-699.97,0.00027671,5]
[381522391,1756247475645,-400.0,0.00027671,5]
[381522392,1756247475654,-400.0,0.00027671,5]
[381522393,1756247475663,-400.0,0.00027671,5]
[381522394,1756247475674,-442.06,0.00027671,5]
[381522395,1756247475682,-969.86,0.00027671,5]
[381522396,1756247475692,-1246.16,0.00027671,5]
[381522397,1756247475702,-400.0,0.00027671,5]
[381522398,1756247475711,-693.1,0.00027671,5]
[381522399,1756247475723,-400.0,0.00027671,5]
[381522400,1756247475734,-608.37,0.00027671,5]
[381522401,1756247475745,-515.86,0.00027671,5]
[381522402,1756247475755,-715.04,0.00027671,5]
[381522403,1756247475767,-400.0,0.00027671,5]
[381522404,1756247475777,-5183.76,0.00027671,5]
[381522405,1756247475786,-364.87600935,0.00027671,5]
[381522406,1756247475796,-911.76,0.00027671,5]
[381522407,1756247475805,-782.75,0.00027671,5]
[381522408,1756247475814,-623.35,0.00027671,5]
[381522409,1756247475824,-400.0,0.00027671,5]
[381522410,1756247475834,-824.81,0.00027671,5]
[381522411,1756247475844,-981.74,0.00027671,5]
[381522412,1756247475855,-572.71,0.00027671,5]
[381522413,1756247475863,-495.62,0.00027671,5]
[381522414,1756247475873,-687.26,0.00027671,5]
[381522415,1756247475882,-400.0,0.00027671,5]
[381522416,1756247475891,-883.65,0.00027671,5]
[381522417,1756247475901,-622.89,0.00027671,5]
[381522418,1756247475910,-593.65,0.00027671,5]
[381522419,1756247475922,-797.6,0.00027671,5]
[381522420,1756247475931,-1118.19,0.00027671,5]
[381522421,1756247475940,-409.89,0.00027671,5]
[381522422,1756247475951,-400.0,0.00027671,5]
[381522423,1756247475960,-645.35,0.00027671,5]
[381522424,1756247475970,-400.0,0.00027671,5]
[381522425,1756247475979,-1528.99,0.00027671,5]
[381522426,1756247475988,-400.0,0.00027671,5]
[381522427,1756247476000,-510.73,0.00027671,5]
[381522428,1756247476011,-400.0,0.00027671,5]
[381522429,1756247476021,-400.0,0.00027671,5]
[381522430,1756247476031,-435.15,0.00027671,5]
[381522431,1756247476040,-491.13,0.00027671,5]
[381522432,1756247476049,-400.0,0.00027671,5]
[381522433,1756247476059,-696.97,0.00027671,5]
[381522434,1756247476069,-916.84,0.00027671,5]
[381522435,1756247476078,-400.0,0.00027671,5]
[381522436,1756247476087,-1032.76,0.00027671,5]
[381522437,1756247476097,-896.13,0.00027671,5]
[381522438,1756247476108,-946.35,0.00027671,5]
[381522439,1756247476118,-400.0,0.00027671,5]
[381522440,1756247476127,-862.17,0.00027671,5]
[381522441,1756247476136,-400.0,0.00027671,5]
[381522442,1756247476146,-463.47,0.00027671,5]
[381522443,1756247476155,-400.00008667,0.00027671,5]
[381522444,1756247476167,-483.95,0.00027671,5]
[381522445,1756247476177,-400.0,0.00027671,5]
[381522446,1756247476186,-400.0,0.00027671,5]
[381522447,1756247476195,-997.34,0.00027671,5]
[381522448,1756247476204,-428.82,0.00027671,5]
[381522449,1756247476214,-400.0,0.00027671,5]
[381522450,1756247476224,-734.08,0.00027671,5]
[381522451,1756247476234,-840.07,0.00027671,5]
[381522452,1756247476245,-400.0,0.00027671,5]
[381522453,1756247476254,-523.38,0.00027671,5]
[381522454,1756247476263,-400.0,0.00027671,5]
[381522455,1756247476272,-481.87,0.00027671,5]
[381522456,1756247476281,-305.08,0.00027671,5]
[381522457,1756247476291,-400.0,0.00027671,5]
[381522458,1756247476300,-787.44,0.00027671,5]
[381522459,1756247476309,-709.87,0.00027671,5]
[381522460,1756247476318,-400.0,0.00027671,5]
[381522461,1756247476327,-400.0,0.00027671,5]
[381522462,1756247476338,-697.83,0.00027671,5]
[381522463,1756247476348,-400.0,0.00027671,5]
[381522464,1756247476358,-1050.98,0.00027671,5]
[381522465,1756247476367,-1003.32,0.00027671,5]
[381522466,1756247476376,-1070.87,0.00027671,5]
[381522467,1756247476387,-694.78,0.00027671,5]
[381522468,1756247476397,-400.0,0.00027671,5]
[381522469,1756247476406,-522.07,0.00027671,5]
[381522470,1756247476419,-1000.81,0.00027671,5]
[381522471,1756247476428,-514.28,0.00027671,5]
[381522472,1756247476438,-646.92,0.00027671,5]
[381522473,1756247476447,-596.48,0.00027671,5]
[381522474,1756247476457,-705.89,0.00027671,5]
[381522475,1756247476467,-936.56,0.00027671,5]
[381522476,1756247476476,-400.0,0.00027671,5]
[381522477,1756247476485,-400.0,0.00027671,5]
[381522478,1756247476495,-881.27,0.00027671,5]
[381522479,1756247476506,-3901.4,0.00027671,5]
[381522480,1756247476515,-400.0,0.00027671,5]
[381522481,1756247476524,-400.0,0.00027671,5]
[381522482,1756247476534,-400.0,0.00027671,5]
[381522483,1756247476543,-580.1,0.00027671,5]
[381522484,1756247476553,-935.93,0.00027671,5]
[381522485,1756247476562,-400.0,0.00027671,5]
[381522486,1756247476571,-400.0,0.00027671,5]
[381522487,1756247476582,-942.64,0.00027671,5]
[381522488,1756247476591,-899.5,0.00027671,5]
[381522489,1756247476600,-400.0,0.00027671,5]
[381522490,1756247476609,-547.55,0.00027671,5]
[381522491,1756247476619,-682.28,0.00027671,5]
[381522492,1756247476628,-639.36,0.00027671,5]
[381522493,1756247476637,-465.82,0.00027671,5]
[381522494,1756247476647,-1012.44,0.00027671,5]
[381522495,1756247476656,-400.0,0.00027671,5]
[381522496,1756247476665,-400.0,0.00027671,5]
[381522497,1756247476674,-912.63,0.00027671,5]
[381522498,1756247476683,-523.2,0.00027671,5]
[381522499,1756247476694,-400.0,0.00027671,5]
[381522500,1756247476703,-719.54,0.00027671,5]
[381522501,1756247476713,-400.0,0.00027671,5]
[381522502,1756247476722,-472.41,0.00027671,5]
[381522503,1756247476731,-400.0,0.00027671,5]
[381522504,1756247476740,-400.0,0.00027671,5]
[381522505,1756247476749,-1229.64,0.00027671,5]
[381522506,1756247476758,-860.61,0.00027671,5]
[381522507,1756247476767,-984.75,0.00027671,5]
[381522508,1756247476776,-400.0,0.00027671,5]
[381522509,1756247476786,-687.38,0.00027671,5]
[381522510,1756247476795,-607.0,0.00027671,5]
[381522511,1756247476805,-668.89,0.00027671,5]
[381522512,1756247476814,-484.98,0.00027671,5]
[381522513,1756247476824,-808.19,0.00027671,5]
[381522514,1756247476833,-1041.94,0.00027671,5]
[381522515,1756247476843,-569.53,0.00027671,5]
[381522516,1756247476853,-1133.42,0.00027671,5]
[381522517,1756247476864,-744.15,0.00027671,5]
[381522518,1756247476873,-400.0,0.00027671,5]
[381522519,1756247476882,-9007.33,0.00027671,5]
[381522520,1756247476891,-549.03,0.00027671,5]
[381522521,1756247476901,-1040.29,0.00027671,5]
[381522522,1756247476910,-400.0,0.00027671,5]
[381522523,1756247476919,-849.58,0.00027671,5]
[381522524,1756247476929,-400.0,0.00027671,5]
[381522525,1756247476938,-683.71,0.00027671,5]
[381522526,1756247476947,-508.36,0.00027671,5]